bitfinex-derivatives/quotes_ETHF0:USTF0_20251003
["timestamp","ask_amount","ask_price","bid_price","bid_amount"]
[1759483152017,0.7675,4461.1,4461.0,0.00225704]
[1759483152521,0.7675,4461.1,4461.0,0.40546704]
[1759483155822,0.7675,4461.1,4461.0,0.62696704]
[1759483157218,0.7675,4461.1,4461.0,0.84676704]
[1759483157419,0.7675,4461.1,4461.0,1.16946704]
[1759483157918,0.7675,4461.1,4461.0,0.62696704]
[1759483158415,0.7675,4461.1,4461.0,0.00225704]
[1759483160324,0.7675,4461.1,4461.0,0.40546704]
[1759483163620,0.7675,4461.1,4461.0,0.62696704]
[1759483164327,0.7675,4461.1,4461.0,0.40546704]
[1759483164626,0.7675,4461.1,4461.0,0.00225704]
[1759483166229,0.7675,4461.1,4461.0,0.40546704]
[1759483167030,0.7675,4461.1,4461.0,0.61856704]
[1759483167432,0.7675,4461.1,4461.0,0.00225704]
[1759483167627,0.7675,4461.1,4461.0,0.40546704]
[1759483168132,0.7675,4461.1,4461.0,0.61856704]
[1759483168332,0.7675,4461.1,4461.0,1.4211418]
[1759483168630,0.7675,4461.1,4461.0,1.9594418]
[1759483169533,0.7675,4461.1,4461.0,1.6265418]
[1759483170029,0.7675,4461.1,4461.0,0.8048318]
[1759483170534,0.7675,4461.1,4461.0,0.00225704]
[1759483171433,0.7675,4461.1,4461.0,0.8048318]
[1759483171634,0.7675,4461.1,4461.0,1.2080418]
[1759483174138,0.7675,4461.1,4461.0,0.8048318]
[1759483174936,0.7675,4461.1,4461.0,0.00225704]
[1759483177131,0.7675,4461.1,4461.0,0.83606704]
[1759483177740,0.7675,4461.1,4461.0,1.14136704]
[1759483177933,0.7675,4461.1,4461.0,0.83606704]
[1759483182539,0.7675,4461.1,4461.0,1.14136704]
[1759483182845,0.5458,4461.1,4461.0,1.14136704]
[1759483185241,0.3224,4461.1,4461.0,1.14136704]
[1759483185440,0.3224,4461.1,4461.0,1.15357714]
[1759483188344,0.12988953,4461.5,4461.4,0.40317]
[1759483188545,0.64808953,4461.5,4461.4,1.1512801]
[1759483188951,0.51988953,4461.5,4461.4,1.1512801]
[1759483189249,0.65028953,4461.5,4461.4,1.1512801]
[1759483191149,0.31208953,4461.5,4461.4,1.1512801]
[1759483191349,0.00168953,4461.5,4461.4,1.1512801]
[1759483192355,0.7406,4462.4,4462.3,1.13899]
[1759483192554,0.7406,4462.4,4462.3,1.1512001]
[1759483192847,0.5182,4462.4,4462.3,1.1512001]
[1759483193250,0.52072686,4462.4,4462.3,1.1512001]
[1759483195452,0.31292686,4462.4,4462.3,1.1512001]
[1759483195653,0.00252686,4462.4,4462.3,1.1512001]
[1759483200467,0.00252686,4462.4,4462.3,41.9512001]
[1759483200767,0.00252686,4462.4,4462.3,42.1772001]
[1759483201167,0.871,4463.5,4463.4,0.40299]
[1759483201366,0.871,4463.5,4463.4,1.13889]
[1759483201561,0.871,4463.5,4463.4,1.1511001]
[1759483202062,0.871,4463.5,4463.4,0.8458001]
[1759483202263,0.87322287,4463.5,4463.4,0.8458001]
[1759483202567,0.87322287,4463.5,4463.4,0.6315001]
[1759483203265,0.52042287,4463.5,4463.4,1.1699001]
[1759483204069,0.85472287,4463.5,4463.4,0.8389001]
[1759483206562,0.85472287,4463.5,4463.4,1.0649001]
[1759483206868,0.85472287,4463.5,4463.4,0.8389001]
[1759483207068,0.85472287,4463.5,4463.4,1.0649001]
[1759483208162,0.85472287,4463.5,4463.4,0.42623883]
[1759483208467,0.85472287,4463.5,4463.4,0.24924883]
[1759483208670,0.85472287,4463.5,4463.4,0.65223883]
[1759483209369,0.85472287,4463.5,4463.4,0.66327756]
[1759483209770,0.85472287,4463.5,4463.4,0.62899]
[1759483209972,0.85472287,4463.5,4463.4,0.67431629]
[1759483210273,0.85472287,4463.5,4463.4,0.68535502]
[1759483210667,0.85472287,4463.5,4463.4,0.62899]
[1759483210969,0.85472287,4463.5,4463.4,0.69639375]
[1759483211170,0.85472287,4463.5,4463.4,0.70743248]
[1759483211368,0.85472287,4463.5,4463.4,0.92023248]
[1759483212470,0.52042287,4463.5,4463.4,1.45863248]
[1759483212773,0.85472287,4463.5,4463.4,1.12763248]
[1759483213070,0.85472287,4463.5,4463.4,0.90163248]
[1759483213371,0.85472287,4463.5,4463.4,0.69423248]
[1759483213770,0.85472287,4463.5,4463.4,1.23263248]
[1759483215174,0.31262287,4463.5,4463.4,1.23263248]
[1759483215678,0.00222287,4463.5,4463.4,1.23263248]
[1759483216471,0.00222287,4463.5,4463.4,42.03263248]
[1759483218981,0.31682287,4463.5,4463.4,42.03263248]
[1759483219482,0.31682287,4463.5,4463.4,42.25863248]
[1759483221385,0.00222287,4463.5,4463.4,42.25863248]
[1759483222179,0.1304,4465.0,4464.9,0.61566]
[1759483222180,0.5442,4465.0,4464.9,0.61566]
[1759483222685,0.4138,4464.7,4464.6,0.40288]
[1759483222885,0.7284,4464.7,4464.6,0.40288]
[1759483223086,0.7284,4464.7,4464.6,0.61750675]
[1759483223087,0.73094925,4464.7,4464.6,0.61750675]
[1759483223385,0.73094925,4464.7,4464.6,0.69594923]
[1759483228590,0.73094925,4464.7,4464.6,0.90334923]
[1759483229092,0.73094925,4464.7,4464.6,1.23544923]
[1759483229387,0.73094925,4464.7,4464.6,0.90334923]
[1759483229891,0.73094925,4464.7,4464.6,0.08026923]
[1759483230792,0.73094925,4464.7,4464.6,0.48314923]
[1759483235293,0.73094925,4464.7,4464.6,0.69754923]
[1759483235494,0.73094925,4464.7,4464.6,1.23424923]
[1759483235695,0.52834925,4464.7,4464.6,1.23424923]
[1759483235888,0.31714925,4464.7,4464.6,1.23424923]
[1759483236084,0.52924925,4464.7,4464.6,1.23424923]
[1759483237296,0.75114925,4464.7,4464.6,1.23424923]
[1759483238891,0.75114925,4464.7,4464.6,0.91764923]
[1759483239296,0.75114925,4464.7,4464.6,0.69754923]
[1759483241495,0.75114925,4464.7,4464.6,0.91764923]
[1759483241796,0.75114925,4464.7,4464.6,1.23424923]
[1759483243500,0.75114925,4464.7,4464.6,0.91764923]
[1759483245901,0.75114925,4464.7,4464.6,1.23424923]
[1759483246595,0.31714925,4464.7,4464.6,1.23424923]
[1759483246901,0.31354925,4464.7,4464.6,1.46024923]
[1759483247401,0.00254925,4464.7,4464.6,1.46024923]
[1759483248092,0.00254925,4464.7,4464.6,42.26024923]
[1759483249995,0.00254925,4464.7,4464.6,43.06282399]
[1759483251293,0.311,4465.3,4465.2,0.71943]
[1759483251498,0.745,4465.9,4465.8,0.4345]
[1759483251901,0.745,4465.9,4465.8,1.15388]
[1759483252103,0.5231,4465.9,4465.8,1.15388]
[1759483252400,0.52583638,4465.9,4465.8,1.23232248]
[1759483253306,0.74773638,4465.9,4465.8,1.23232248]
[1759483254905,0.52583638,4465.9,4465.8,1.23232248]
[1759483256606,0.31373638,4465.9,4465.8,1.23232248]
[1759483258405,0.00273638,4465.9,4465.8,1.23232248]
[1759483258602,0.31373638,4465.9,4465.8,1.23232248]
[1759483259806,0.52583638,4465.9,4465.8,1.23232248]
[1759483263112,0.74773638,4465.9,4465.8,1.23232248]
[1759483263709,0.74773638,4465.9,4465.8,0.07844248]
[1759483267608,5.74773638,4465.9,4465.8,0.07844248]
[1759483270814,0.74773638,4465.9,4465.8,0.07844248]
[1759483273315,0.74773638,4465.9,4465.8,0.69082248]
[1759483273611,0.74773638,4465.9,4465.8,1.22282248]
[1759483274718,0.74773638,4465.9,4465.8,0.82004248]
[1759483274911,0.74773638,4465.9,4465.8,0.50354248]
[1759483277913,0.74773638,4465.9,4465.8,0.28804248]
[1759483280920,0.74773638,4465.9,4465.8,0.69082248]
[1759483282117,0.74773638,4465.9,4465.8,0.90632248]
[1759483282313,0.74773638,4465.9,4465.8,1.22282248]
[1759483282511,0.74773638,4465.9,4465.8,0.90632248]
[1759483282710,0.74773638,4465.9,4465.8,0.50354248]
[1759483282909,0.74773638,4465.9,4465.8,0.28804248]
[1759483283220,0.74773638,4465.9,4465.8,0.07844248]
[1759483292541,0.74773638,4465.9,4465.8,0.29944248]
[1759483292943,0.74773638,4465.9,4465.8,0.92122248]
[1759483293535,0.74773638,4465.9,4465.8,1.25152248]
[1759483293938,0.31373638,4465.9,4465.8,1.25152248]
[1759483295342,0.00273638,4465.9,4465.8,1.25152248]
[1759483296345,0.7479,4466.9,4466.8,1.17299]
[1759483297237,0.00189867,4466.9,4466.8,1.17299]
[1759483297444,0.00189867,4466.9,4466.8,1.25143248]
[1759483298642,0.1253,4467.5,4467.4,1.17293]
[1759483298643,0.3379,4467.5,4467.4,1.17293]
[1759483299037,0.8732,4467.5,4467.4,1.17293]
[1759483299437,0.87607847,4467.5,4467.4,1.25137248]
[1759483300845,0.32317847,4467.5,4467.4,1.25137248]
[1759483301049,0.00287847,4467.5,4467.4,1.25137248]
[1759483301241,0.00287847,4467.5,4467.4,6.25137248]
[1759483301841,0.00287847,4467.5,4467.4,47.05137248]
[1759483302335,0.00287847,4467.5,4467.4,42.05137248]
[1759483302737,0.022,4467.9,4467.8,1.1729]
[1759483302944,0.022,4467.9,4467.8,1.3989]
[1759483303344,0.022,4467.9,4467.8,1.47734248]
[1759483303746,0.02480162,4467.9,4467.8,1.47948862]
[1759483304442,0.02480162,4467.9,4467.8,6.47948862]
[1759483311755,0.34510162,4467.9,4467.8,6.47948862]
[1759483313747,0.02480162,4467.9,4467.8,6.47948862]
[1759483315053,0.34510162,4467.9,4467.8,6.47948862]
[1759483316653,0.02480162,4467.9,4467.8,6.47948862]
[1759483317548,0.34510162,4467.9,4467.8,6.47948862]
[1759483317956,0.02480162,4467.9,4467.8,6.47948862]
[1759483322553,0.1269,4469.0,4468.8,0.6253]
[1759483322554,0.3353,4468.9,4468.8,0.6253]
[1759483322754,0.3353,4469.4,4469.3,0.7481]
[1759483323062,0.3353,4469.4,4469.3,0.9741]
[1759483323356,0.3353,4469.4,4469.3,1.05254248]
[1759483323357,0.5422,4469.4,4469.3,1.05254248]
[1759483323655,0.54436407,4469.4,4469.3,1.05254248]
[1759483323855,0.33746407,4469.4,4469.3,1.05254248]
[1759483327059,0.00216407,4469.4,4469.3,1.05254248]
[1759483327455,0.1263,4470.5,4470.0,0.3143]
[1759483327761,0.8815,4470.5,4470.4,0.2228]
[1759483328353,0.88324191,4470.5,4470.4,0.2228]
[1759483328556,0.33704191,4470.5,4470.4,0.82654248]
[1759483328948,0.54394191,4470.5,4470.4,0.82654248]
[1759483329967,0.00174191,4470.5,4470.4,0.82654248]
[1759483330851,0.33704191,4470.5,4470.4,0.82654248]
[1759483332363,0.00174191,4470.5,4470.4,0.82654248]
[1759483334964,0.33704191,4470.5,4470.4,0.82654248]
[1759483335571,0.00174191,4470.5,4470.4,0.82654248]
[1759483338770,0.00174191,4470.5,4470.4,41.62654248]
[1759483339868,0.33704191,4470.5,4470.4,41.62654248]
[1759483340072,5.88324191,4470.5,4470.4,0.07844248]
[1759483345682,0.88324191,4470.5,4470.4,0.30124248]
[1759483346767,0.88324191,4470.5,4470.4,0.07844248]
[1759483348980,0.88324191,4470.5,4470.4,0.28674248]
[1759483352176,0.88324191,4470.5,4470.4,0.07844248]
[1759483356677,0.88324191,4470.5,4470.4,0.29594248]
[1759483356877,0.88324191,4470.5,4470.4,0.82994248]
[1759483357081,0.88324191,4470.5,4470.4,0.50744248]
[1759483357284,0.88324191,4470.5,4470.4,0.07844248]
[1759483359589,0.88324191,4470.5,4470.4,0.29594248]
[1759483359783,0.88324191,4470.5,4470.4,0.69830248]
[1759483360884,0.88324191,4470.5,4470.4,0.50744248]
[1759483361281,0.88324191,4470.5,4470.4,0.29594248]
[1759483361780,0.88324191,4470.5,4470.4,0.07844248]
[1759483363391,0.88324191,4470.5,4470.4,0.69830248]
[1759483363592,0.88324191,4470.5,4470.4,1.23230248]
[1759483366098,0.33704191,4470.5,4470.4,1.23230248]
[1759483367705,0.55434191,4470.5,4470.4,1.23230248]
[1759483367907,0.33704191,4470.5,4470.4,1.23230248]
[1759483368107,0.33704191,4470.5,4470.4,2.03280937]
[1759483368304,0.3073,4471.4,4471.3,0.2175]
[1759483368500,0.7341,4471.4,4471.3,1.45722248]
[1759483368803,0.7341,4471.4,4471.3,2.25541235]
[1759483369004,0.3073,4471.4,4471.3,43.05541235]
[1759483369504,0.30966602,4471.4,4471.3,42.25918249]
[1759483371100,0.00236602,4471.4,4471.3,47.25918249]
[1759483373802,0.3073,4472.0,4471.9,0.429]
[1759483374007,0.3073,4472.0,4471.9,0.9765]
[1759483374211,0.7341,4472.4,4472.3,0.2175]
[1759483374507,0.7341,4472.4,4472.3,0.29594248]
[1759483374698,0.7341,4472.4,4472.3,0.07844248]
[1759483374900,0.73624191,4472.4,4472.3,0.07844248]
[1759483375101,0.73624191,4472.4,4472.3,0.50744248]
[1759483375298,0.30944191,4472.4,4472.3,0.82994248]
[1759483375502,0.00214191,4472.4,4472.3,0.82994248]
[1759483376002,0.73624191,4472.4,4472.3,0.69809248]
[1759483376300,0.73624191,4472.4,4472.3,1.45709248]
[1759483376301,0.52674191,4472.4,4472.3,1.45709248]
[1759483376907,0.73624191,4472.4,4472.3,1.45709248]
[1759483379006,0.73624191,4472.4,4472.3,1.05494248]
[1759483379310,0.73624191,4472.4,4472.3,0.73244248]
[1759483382914,0.73624191,4472.4,4472.3,0.52094248]
[1759483384918,0.73624191,4472.4,4472.3,0.07844248]
[1759483389716,5.73624191,4472.4,4472.3,0.07844248]
[1759483394123,0.7462,4471.4,4471.3,0.43496001]
[1759483394427,0.1326,4472.0,4471.6,0.40221]
[1759483394623,0.7462,4471.9,4471.8,0.208]
[1759483395127,0.31864191,4472.4,4471.9,0.3088]
[1759483395324,0.7462,4472.3,4472.2,0.82106]
[1759483395521,0.00214191,4472.4,4472.2,0.82106]
[1759483395721,0.00214191,4472.4,4472.3,0.7277]
[1759483395921,0.52544191,4472.4,4472.3,0.7277]
[1759483396319,0.31864191,4472.4,4472.3,0.7277]
[1759483396528,0.00214191,4472.4,4472.3,0.7277]
[1759483397225,0.31864191,4472.4,4472.3,0.7277]
[1759483398720,0.00214191,4472.4,4472.3,0.7277]
[1759483399728,0.00214191,4472.4,4472.3,41.5277]
[1759483401132,0.00214191,4472.4,4472.3,41.72653934]
[1759483401632,0.00214191,4472.4,4472.3,46.72653934]
[1759483401837,0.022,4472.9,4472.8,1.12981]
[1759483402036,0.022,4472.9,4472.8,1.35481]
[1759483402633,0.03651813,4472.9,4472.8,1.35481]
[1759483402836,0.03833193,4472.9,4472.8,1.35481]
[1759483403637,0.04922068,4472.9,4472.8,1.35481]
[1759483404831,0.0545709,4472.9,4472.8,1.35481]
[1759483407735,0.0545709,4472.9,4472.8,6.35481]
[1759483407932,0.7508,4474.0,4473.9,0.82081]
[1759483408132,0.7508,4474.0,4473.9,1.13141]
[1759483408739,0.8755,4474.0,4473.9,1.13141]
[1759483408941,0.8780657,4474.0,4473.9,1.13141]
[1759483409433,0.7533657,4474.0,4473.9,1.13141]
[1759483409733,0.5453657,4474.0,4473.9,1.13141]
[1759483410134,0.1326,4475.0,4473.8,0.225]
[1759483410135,0.5428,4474.5,4474.4,1.13136]
[1759483410332,0.5428,4474.5,4474.4,1.35636]
[1759483410641,0.55728948,4474.5,4474.4,1.35636]
[1759483411041,0.55958268,4474.5,4474.4,1.35636]
[1759483411240,0.76758268,4474.5,4474.4,1.35636]
[1759483411442,0.78207216,4474.5,4474.4,1.35636]
[1759483411738,0.78207216,4474.5,4474.4,0.9544]
[1759483411944,0.58297216,4474.5,4474.4,0.188]
[1759483412141,0.24767216,4474.5,4474.4,0.9215]
[1759483412542,0.77397216,4474.5,4474.4,0.9215]
[1759483415143,0.5283,4474.0,4473.9,0.7335]
[1759483415336,0.5283,4474.0,4473.9,41.7585]
[1759483415535,0.55727896,4474.0,4473.9,41.7585]
[1759483416142,0.68457896,4474.0,4473.9,41.7585]
[1759483416343,0.88997896,4474.0,4473.9,0.2083]
[1759483416641,0.88997896,4474.0,4473.6,0.3114]
[1759483416839,0.88997896,4474.0,4473.9,0.225]
[1759483417242,0.90452436,4474.0,4473.9,0.225]
[1759483417446,0.4128,4473.5,4473.4,0.82415]
[1759483417638,0.7337,4473.5,4473.4,1.36055]
[1759483417940,0.7337,4473.5,4473.4,0.9585]
[1759483418141,0.59816976,4473.5,4473.4,0.225]
[1759483418442,0.91906976,4473.5,4473.4,0.225]
[1759483418643,0.59816976,4473.5,4473.4,0.225]
[1759483418845,0.91906976,4473.5,4473.4,0.225]
[1759483421636,0.58636976,4473.5,4473.4,0.9585]
[1759483421841,0.79176976,4473.5,4473.4,0.9585]
[1759483422246,0.91906976,4473.5,4473.4,0.9585]
[1759483422548,0.91906976,4473.5,4473.4,0.225]
[1759483422744,0.91906976,4473.5,4473.0,0.3114]
[1759483422745,0.91906976,4473.5,4472.9,0.4021]
[1759483422951,0.3209,4472.6,4472.5,0.69618627]
[1759483423251,0.3209,4472.6,4472.5,1.65468627]
[1759483423252,0.79176976,4472.6,4472.5,1.65468627]
[1759483423748,0.58636976,4472.6,4472.5,1.65468627]
[1759483424547,0.05806976,4472.6,4472.5,1.78038627]
[1759483424848,0.37896976,4472.6,4472.5,1.78038627]
[1759483425149,0.58636976,4472.6,4472.5,1.65468627]
[1759483425947,0.79176976,4472.6,4472.5,1.65468627]
[1759483426450,0.37896976,4472.6,4472.5,1.78038627]
[1759483426639,0.05806976,4472.6,4472.5,1.78038627]
[1759483432445,0.1295932,4474.5,4472.5,1.37825627]
[1759483432750,0.5283,4473.2,4473.1,0.40208]
[1759483432955,0.5283,4473.2,4473.1,1.36058]
[1759483433154,0.7337,4473.2,4473.1,1.36058]
[1759483433652,0.7337,4473.2,4473.1,0.82418]
[1759483433852,0.4482,4473.0,4472.9,40.8]
[1759483434051,0.4482,4473.0,4472.9,41.4271]
[1759483434252,0.861,4473.0,4472.9,0.6271]
[1759483434752,0.861,4473.0,4472.9,0.225]
[1759483435253,0.861,4473.0,4472.9,0.6271]
[1759483435558,0.861,4473.0,4472.9,0.8354]
[1759483435858,0.3209,4473.0,4472.9,1.3606]
[1759483436058,0.1295932,4474.5,4473.5,0.40204]
[1759483436257,0.1295932,4474.5,4473.5,0.62704]
[1759483436459,0.5401,4474.0,4473.9,0.2083]
[1759483436654,0.861,4474.0,4473.9,0.2083]
[1759483438258,0.861,4474.0,4473.9,0.7335]
[1759483438560,0.861,4474.0,4473.9,0.2083]
[1759483438950,0.861,4474.0,4473.9,0.82411]
[1759483439157,0.7337,4474.0,4473.9,1.13551]
[1759483439550,0.5283,4474.0,4473.9,1.13551]
[1759483440866,0.2074,4474.0,4473.9,1.13551]
[1759483441163,0.5283,4474.3,4474.2,0.7335]
[1759483441358,0.7337,4474.3,4474.2,0.7335]
[1759483442360,0.0022932,4474.5,4474.4,1.16646]
[1759483442664,0.5466932,4474.5,4474.4,0.7645]
[1759483442866,0.7679932,4474.5,4474.4,0.7645]
[1759483443065,0.8953932,4474.5,4474.4,1.16646]
[1759483443766,0.8953932,4474.5,4474.4,0.7645]
[1759483444473,0.7679932,4474.5,4474.4,0.7645]
[1759483445669,0.8953932,4474.5,4474.4,0.7645]
[1759483446260,0.8953932,4474.5,4474.4,0.4396]
[1759483446466,0.8953932,4474.5,4474.4,0.216]
[1759483447870,0.8953932,4474.5,4474.2,0.225]
[1759483448075,0.7657,4474.3,4474.2,0.62698]
[1759483448467,0.7657,4474.3,4474.2,1.16788]
[1759483448667,0.7657,4474.3,4474.2,1.39148]
[1759483450071,0.0022932,4474.5,4474.4,1.16646]
[1759483450271,0.5466932,4474.5,4474.4,1.16646]
[1759483450473,0.0022932,4474.5,4474.4,1.16646]
[1759483454066,0.5466932,4474.5,4474.4,1.16646]
[1759483454266,0.7679932,4474.5,4474.4,1.16646]
[1759483454871,0.5466932,4474.5,4474.4,1.16646]
[1759483455071,0.0022932,4474.5,4474.4,1.16646]
[1759483456680,0.7679932,4474.5,4474.4,1.16646]
[1759483458168,0.0022932,4474.5,4474.4,1.16646]
[1759483458376,0.0022932,4474.5,4474.4,1.76269631]
[1759483458872,0.0022932,4474.5,4474.4,1.9523785]
[1759483459273,0.0022932,4474.5,4474.4,1.35614219]
[1759483459778,0.0022932,4474.5,4474.4,1.16646]
[1759483461871,0.0022932,4474.5,4474.4,1.96464987]
[1759483462179,0.0186561,4476.3,4474.4,7.02308987]
[1759483462484,0.7657,4476.9,4476.8,0.61775]
[1759483462674,0.7657,4476.8,4476.7,0.227]
[1759483463176,5.76798416,4476.8,4476.7,0.22974377]
[1759483463579,5.76798416,4476.8,4476.7,0.44574377]
[1759483464089,5.76798416,4476.8,4476.7,0.22974377]
[1759483465283,0.76798416,4476.8,4476.7,0.44574377]
[1759483465485,0.78571647,4476.8,4476.7,0.44574377]
[1759483466288,0.78571647,4476.8,4476.7,0.99114377]
[1759483466289,0.55731647,4476.8,4476.7,0.99114377]
[1759483466494,0.76541647,4476.8,4476.7,0.99114377]
[1759483466690,0.03302342,4476.8,4476.7,0.99114377]
[1759483467786,0.03302342,4476.8,4476.7,1.58632095]
[1759483467990,0.03302342,4476.8,4476.7,42.38632095]
[1759483468389,0.03302342,4476.8,4476.7,41.79114377]
[1759483468592,0.03302342,4476.8,4476.7,42.38632095]
[1759483468893,0.03302342,4476.8,4476.7,41.79114377]
[1759483470893,0.35592342,4476.8,4476.7,41.79114377]
[1759483471693,0.022,4477.9,4476.7,41.79114377]
[1759483471884,0.3293,4477.8,4477.4,0.40169]
[1759483472190,0.7724,4477.5,4477.4,1.14419]
[1759483472387,0.1314,4479.0,4477.4,1.37319]
[1759483472596,0.19378961,4483.2,4481.6,10.0329]
[1759483472793,35.34877939,4487.1,4482.1,1.00318]
[1759483472794,0.1219,4483.5,4482.1,1.00318]
[1759483472990,0.1219,4483.0,4482.7,0.40121]
[1759483473289,0.01222642,4482.9,4482.3,0.58845943]
[1759483473491,0.1219,4482.5,4482.4,0.32680282]
[1759483473882,5.12386834,4482.5,4482.4,0.32680282]
[1759483474087,0.12386834,4482.5,4482.4,0.32680282]
[1759483474294,5.14238118,4482.5,4482.4,0.32680282]
[1759483474499,5.47168118,4482.5,4482.4,0.32680282]
[1759483474890,5.47168118,4482.5,4482.4,0.34856805]
[1759483475290,0.3293,4481.9,4481.7,0.40131]
[1759483475690,5.3293,4481.9,4481.7,0.40131]
[1759483476397,0.34781284,4481.8,4481.7,0.40131]
[1759483476698,0.30896716,4481.8,4481.7,0.40131]
[1759483476902,0.30896716,4481.8,4481.6,0.00224565]
[1759483477098,5.0,4481.7,4481.6,0.00224565]
[1759483477291,0.1219,4482.0,4481.6,0.00224565]
[1759483477597,0.1219,4481.0,4480.8,0.58845943]
[1759483477891,0.1219,4481.0,4480.5,0.40141]
[1759483478098,0.1219,4481.0,4480.7,0.40139]
[1759483478486,0.3293,4480.9,4480.7,0.00262129]
[1759483478696,5.3293,4480.9,4480.7,0.00262129]
[1759483479491,0.1219,4481.0,4480.7,0.00262129]
[1759483479492,5.3293,4480.8,4480.7,0.00262129]
[1759483479890,5.5703,4480.8,4480.7,0.00262129]
[1759483480593,0.3293,4480.4,4480.3,0.58845943]
[1759483480794,0.1219,4480.5,4480.2,0.58845943]
[1759483480999,0.1219,4480.5,4480.1,0.58845943]
[1759483481199,0.1219,4480.5,4480.2,0.58845943]
[1759483481495,0.3293,4480.4,4480.2,0.59018297]
[1759483481697,0.4023,4480.3,4480.2,0.59018297]
[1759483481996,0.1219,4480.0,4479.9,0.58541034]
[1759483482299,0.1219,4480.0,4479.3,0.79356957]
[1759483482300,0.3293,4479.4,4479.3,0.79356957]
[1759483482491,0.3293,4479.4,4479.2,1.19508957]
[1759483482692,0.3293,4479.4,4479.3,0.40152]
[1759483482892,0.3293,4479.4,4479.3,0.40355208]
[1759483483097,0.34367052,4479.4,4479.3,1.19712165]
[1759483483391,0.34367052,4479.4,4479.3,0.40355208]
[1759483483589,0.34367052,4479.4,4479.3,0.00203208]
[1759483483790,5.34367052,4479.4,4479.3,0.00203208]
[1759483483992,5.34367052,4479.4,4479.3,3.208e-05]
[1759483484197,0.3293,4478.9,4478.8,1.1829219]
[1759483484396,0.3293,4478.9,4478.8,0.7813619]
[1759483484593,0.3293,4478.9,4478.7,1.1829319]
[1759483484796,0.24,4478.8,4478.6,0.7813619]
[1759483485104,0.36003926,4478.7,4478.6,0.78325269]
[1759483485303,0.36003926,4478.7,4478.6,1.76768892]
[1759483486196,0.36003926,4478.7,4478.6,0.98632702]
[1759483486400,0.2049102,4478.7,4478.6,0.98632702]
[1759483489202,0.05980238,4478.7,4478.6,0.98632702]
[1759483489510,0.05980238,4478.7,4478.6,2.57631589]
[1759483490199,0.05980238,4478.7,4478.6,0.98632702]
[1759483491007,0.29819184,4478.7,4478.6,2.55501731]
[1759483491208,0.44497567,4478.8,4478.7,0.40158]
[1759483491400,0.44497567,4478.8,4478.7,2.95620574]
[1759483491807,0.00187567,4478.8,4478.7,2.95620574]
[1759483492101,0.01626513,4478.8,4478.7,1.38601623]
[1759483492300,0.45936513,4478.8,4478.7,1.38601623]
[1759483492497,0.45936513,4478.8,4478.7,2.55638802]
[1759483492698,0.45936513,4478.8,4478.7,0.98443623]
[1759483492900,0.44497567,4478.8,4478.7,0.98443623]
[1759483493102,0.79062547,4478.8,4478.7,2.23584873]
[1759483493306,0.79062547,4478.8,4478.7,0.66389694]
[1759483493906,0.79062547,4478.8,4478.7,2.23584873]
[1759483494105,0.79062547,4478.8,4478.7,0.66389694]
[1759483498806,0.80500945,4478.8,4478.7,0.66389694]
[1759483499204,0.80500945,4478.8,4478.7,1.06547694]
[1759483499807,0.81939343,4478.8,4478.7,1.06547694]
[1759483501105,0.37629343,4478.8,4478.7,1.06547694]
[1759483501500,0.37629343,4478.8,4478.7,6.06547694]
[1759483501905,0.37629343,4478.8,4478.7,1.06547694]
[1759483502104,0.60029343,4478.8,4478.7,1.06547694]
[1759483502411,0.37629343,4478.8,4478.7,1.06547694]
[1759483502810,0.58399343,4478.8,4478.7,1.06547694]
[1759483503210,0.1219,4479.0,4478.9,0.40156]
[1759483503511,0.3296,4479.0,4478.9,1.06545694]
[1759483504011,0.3296,4479.0,4478.9,2.64409927]
[1759483504311,0.3296,4479.0,4478.9,1.06545694]
[1759483504312,0.12443937,4479.0,4478.9,1.06545694]
[1759483504807,0.53803937,4479.0,4478.9,1.06545694]
[1759483505210,0.85323937,4479.0,4478.9,2.64513927]
[1759483505711,0.85323937,4479.0,4478.9,2.24357927]
[1759483506101,0.85323937,4479.0,4478.9,0.66389694]
[1759483507109,0.114,4479.3,4479.0,0.40155]
[1759483507311,0.4136,4479.2,4479.1,2.24826132]
[1759483508312,0.41610363,4479.2,4479.1,2.24826132]
[1759483508501,0.49310363,4479.2,4479.1,2.64980132]
[1759483508908,0.49310363,4479.2,4479.1,2.24826132]
[1759483509113,0.80830363,4479.2,4479.1,0.66389694]
[1759483509314,5.80830363,4479.2,4479.1,0.66389694]
[1759483509721,0.96830363,4479.2,4479.1,1.06543694]
[1759483510212,0.96830363,4479.2,4479.1,0.66389694]
[1759483510608,0.96830363,4479.2,4479.1,1.06543694]
[1759483512314,0.96830363,4479.2,4479.1,0.66389694]
[1759483512708,0.96830363,4479.2,4479.1,1.06543694]
[1759483512910,0.73130363,4479.2,4479.1,1.06543694]
[1759483513907,0.31770363,4479.2,4479.1,2.64980132]
[1759483514114,0.31770363,4479.2,4479.1,1.06543694]
[1759483515112,0.1219,4479.5,4479.4,0.40151]
[1759483515415,0.4371,4479.5,4479.4,1.06540694]
[1759483516118,0.43907216,4479.5,4479.4,1.06540694]
[1759483516807,0.00197216,4479.5,4479.4,6.06540694]
[1759483517317,0.00197216,4479.5,4479.4,8.04942994]
[1759483517713,0.44907216,4479.5,4479.4,8.04942994]
[1759483518213,0.44907216,4479.5,4479.4,1.06540694]
[1759483518518,0.86267216,4479.5,4479.4,1.06540694]
[1759483519309,0.86267216,4479.5,4479.4,2.65187034]
[1759483520319,0.86267216,4479.5,4479.4,1.06540694]
[1759483520720,0.44907216,4479.5,4479.4,1.06540694]
[1759483521020,0.86267216,4479.5,4479.4,1.06540694]
[1759483526324,0.86267216,4479.5,4479.4,0.66389694]
[1759483526518,0.86267216,4479.5,4479.4,1.06540694]
[1759483530328,0.86267216,4479.5,4479.4,0.66389694]
[1759483533320,0.86267216,4479.5,4479.4,1.45747794]
[1759483534027,5.86267216,4479.5,4479.4,0.66389694]
[1759483534420,6.09767216,4479.5,4479.4,0.66389694]
[1759483536128,5.86267216,4479.5,4479.4,0.66389694]
[1759483536323,6.09767216,4479.5,4479.4,0.66389694]
[1759483537527,5.86267216,4479.5,4479.4,0.66389694]
[1759483537725,6.09767216,4479.5,4479.4,0.66389694]
[1759483538928,5.86267216,4479.5,4479.4,0.66389694]
[1759483539230,6.09767216,4479.5,4479.4,0.66389694]
[1759483541427,5.86267216,4479.5,4479.4,0.66389694]
[1759483541627,6.09767216,4479.5,4479.4,0.66389694]
[1759483542431,0.3346,4479.4,4479.1,0.59517064]
[1759483542623,0.3346,4479.1,4479.0,0.59517064]
[1759483542828,0.99,4479.1,4479.0,0.59517064]